[Event "Titled Tuesday Blitz June 20 Early 2023"]
[White "Vlassov, Nikolai"]
[Black "Rizzo, Tobias"]
[WhiteFideId "4103360"]
[BlackFideId "30942691"]
[WhiteElo "2324"]
[BlackElo "2482"]
[Result "1-0"]
[Round "7"]
[TimeControl "180+2"]
[Date "2023.06.20"]
[WhiteClock "0:00:14"]
[BlackClock "0:00:31"]
[Board "98"]

1. e4 {[%clk 0:03:00]}  c5 {[%clk 0:02:59]} 2. c3 {[%clk 0:03:00]}  d5 {[%clk 0:02:59]} 3. exd5 {[%clk 0:03:01]}  Qxd5 {[%clk 0:03:00]} 4. d4 {[%clk 0:03:01]}  cxd4 {[%clk 0:03:01]} 5. cxd4 {[%clk 0:03:00]}  Nc6 {[%clk 0:03:01]} 6. Nf3 {[%clk 0:02:59]}  e5 {[%clk 0:03:01]} 7. Nc3 {[%clk 0:02:59]}  Bb4 {[%clk 0:03:01]} 8. Be2 {[%clk 0:02:59]}  e4 {[%clk 0:02:50]} 9. O-O {[%clk 0:02:58]}  Bxc3 {[%clk 0:02:50]} 10. bxc3 {[%clk 0:02:59]}  Bf5 {[%clk 0:02:38]} 11. c4 {[%clk 0:02:50]}  Qd7 {[%clk 0:02:35]} 12. d5 {[%clk 0:02:48]}  exf3 {[%clk 0:02:22]} 13. Bxf3 {[%clk 0:02:18]}  Nce7 {[%clk 0:02:11]} 14. d6 {[%clk 0:02:08]}  Nc6 {[%clk 0:02:09]} 15. Bb2 {[%clk 0:01:59]}  Nf6 {[%clk 0:02:08]} 16. Re1+ {[%clk 0:01:56]}  Be6 {[%clk 0:02:08]} 17. c5 {[%clk 0:01:51]}  O-O {[%clk 0:01:50]} 18. Qd2 {[%clk 0:01:47]}  Ne8 {[%clk 0:01:37]} 19. Rad1 {[%clk 0:01:17]}  Rc8 {[%clk 0:01:35]} 20. Re4 {[%clk 0:00:56]}  b6 {[%clk 0:01:16]} 21. cxb6 {[%clk 0:00:54]}  axb6 {[%clk 0:01:17]} 22. Rh4 {[%clk 0:00:45]}  Rd8 {[%clk 0:01:02]} 23. Ba3 {[%clk 0:00:37]}  Bf5 {[%clk 0:00:58]} 24. Qd5 {[%clk 0:00:31]}  Rc8 {[%clk 0:00:51]} 25. Rf4 {[%clk 0:00:20]}  Be6 {[%clk 0:00:50]} 26. Qh5 {[%clk 0:00:18]}  Nf6 {[%clk 0:00:48]} 27. Rxf6 {[%clk 0:00:15]}  gxf6 {[%clk 0:00:49]} 28. Be4 {[%clk 0:00:15]}  f5 {[%clk 0:00:49]} 29. Qg5+ {[%clk 0:00:13]}  Kh8 {[%clk 0:00:48]} 30. Qf6+ {[%clk 0:00:13]}  Kg8 {[%clk 0:00:31]} 31. Bb2 {[%clk 0:00:14]} 1-0


[Site "https://www.chess.com"]

[Event "Titled Tuesday Blitz June 20 Early 2023"]
[White "Andreev, Konstantin"]
[Black "Jakubowski, Krzysztof"]
[WhiteFideId "24239305"]
[BlackFideId "1112848"]
[WhiteElo "2106"]
[BlackElo "2359"]
[Result "0-1"]
[Round "7"]
[TimeControl "180+2"]
[Date "2023.06.20"]
[WhiteClock "0:00:06"]
[BlackClock "0:00:05"]
[Board "100"]

1. e4 {[%clk 0:02:50]}  c5 {[%clk 0:02:58]} 2. Nf3 {[%clk 0:02:50]}  e6 {[%clk 0:02:58]} 3. d4 {[%clk 0:02:49]}  cxd4 {[%clk 0:02:58]} 4. Nxd4 {[%clk 0:02:50]}  a6 {[%clk 0:02:58]} 5. Bd3 {[%clk 0:02:50]}  Bc5 {[%clk 0:02:56]} 6. Nb3 {[%clk 0:02:50]}  Ba7 {[%clk 0:02:56]} 7. Nc3 {[%clk 0:02:42]}  Nc6 {[%clk 0:02:55]} 8. Bd2 {[%clk 0:02:34]}  Nge7 {[%clk 0:02:53]} 9. Qe2 {[%clk 0:02:35]}  O-O {[%clk 0:02:53]} 10. O-O-O {[%clk 0:02:35]}  b5 {[%clk 0:02:52]} 11. Kb1 {[%clk 0:02:34]}  Bb7 {[%clk 0:02:38]} 12. e5 {[%clk 0:02:34]}  Nb4 {[%clk 0:02:29]} 13. Be4 {[%clk 0:02:25]}  Qc7 {[%clk 0:02:21]} 14. Bxb7 {[%clk 0:02:12]}  Qxb7 {[%clk 0:02:20]} 15. Ne4 {[%clk 0:02:12]}  Nbd5 {[%clk 0:02:06]} 16. f4 {[%clk 0:02:09]}  Bb6 {[%clk 0:01:52]} 17. Nbc5 {[%clk 0:01:57]}  Qc6 {[%clk 0:01:50]} 18. Nd3 {[%clk 0:01:56]}  a5 {[%clk 0:01:49]} 19. g4 {[%clk 0:01:54]}  a4 {[%clk 0:01:49]} 20. a3 {[%clk 0:01:49]}  Rac8 {[%clk 0:01:30]} 21. Rc1 {[%clk 0:01:48]}  Bc7 {[%clk 0:01:26]} 22. Rhf1 {[%clk 0:01:44]}  d6 {[%clk 0:01:24]} 23. Nb4 {[%clk 0:01:35]}  Qd7 {[%clk 0:01:18]} 24. f5 {[%clk 0:01:25]}  dxe5 {[%clk 0:01:14]} 25. f6 {[%clk 0:01:21]}  Nxf6 {[%clk 0:01:13]} 26. Rxf6 {[%clk 0:01:19]}  Ng6 {[%clk 0:01:02]} 27. Rf3 {[%clk 0:01:18]}  f5 {[%clk 0:01:00]} 28. Rd3 {[%clk 0:01:03]}  Qe8 {[%clk 0:00:56]} 29. Nd6 {[%clk 0:00:58]}  Bxd6 {[%clk 0:00:56]} 30. Rxd6 {[%clk 0:00:59]}  e4 {[%clk 0:00:56]} 31. Rb6 {[%clk 0:00:49]}  Ne5 {[%clk 0:00:51]} 32. Bc3 {[%clk 0:00:37]}  Nxg4 {[%clk 0:00:46]} 33. Rg1 {[%clk 0:00:33]}  Rf7 {[%clk 0:00:44]} 34. h3 {[%clk 0:00:30]}  Nf6 {[%clk 0:00:43]} 35. Rxb5 {[%clk 0:00:29]}  Rd8 {[%clk 0:00:23]} 36. Rb6 {[%clk 0:00:27]}  Nd5 {[%clk 0:00:22]} 37. Nxd5 {[%clk 0:00:24]}  exd5 {[%clk 0:00:23]} 38. Qe3 {[%clk 0:00:23]}  f4 {[%clk 0:00:22]} 39. Qd4 {[%clk 0:00:23]}  Qf8 {[%clk 0:00:22]} 40. Bb4 {[%clk 0:00:14]}  Qe8 {[%clk 0:00:22]} 41. Bc3 {[%clk 0:00:09]}  Qd7 {[%clk 0:00:22]} 42. Rf6 {[%clk 0:00:09]}  Rdf8 {[%clk 0:00:20]} 43. Rxf4 {[%clk 0:00:07]}  h5 {[%clk 0:00:16]} 44. Rf2 {[%clk 0:00:05]}  Kh7 {[%clk 0:00:12]} 45. Rfg2 {[%clk 0:00:05]}  Rg8 {[%clk 0:00:12]} 46. Rg5 {[%clk 0:00:06]}  g6 {[%clk 0:00:11]} 47. Rxh5+ {[%clk 0:00:05]}  gxh5 {[%clk 0:00:11]} 48. Rxg8 {[%clk 0:00:06]}  Rf1+ {[%clk 0:00:10]} 49. Ka2 {[%clk 0:00:07]}  Kxg8 {[%clk 0:00:10]} 50. Qh8+ {[%clk 0:00:05]}  Kf7 {[%clk 0:00:11]} 51. Qxh5+ {[%clk 0:00:04]}  Ke6 {[%clk 0:00:10]} 52. Qg4+ {[%clk 0:00:04]}  Rf5 {[%clk 0:00:10]} 53. Qg6+ {[%clk 0:00:03]}  Ke7 {[%clk 0:00:10]} 54. Bb4+ {[%clk 0:00:03]}  Kd8 {[%clk 0:00:07]} 55. Ba5+ {[%clk 0:00:03]}  Kc8 {[%clk 0:00:06]} 56. Qa6+ {[%clk 0:00:03]}  Kb8 {[%clk 0:00:06]} 57. Qb6+ {[%clk 0:00:02]}  Ka8 {[%clk 0:00:05]} 58. Qc5 {[%clk 0:00:02]}  Kb7 {[%clk 0:00:05]} 59. Bc3 {[%clk 0:00:02]}  Qc6 {[%clk 0:00:04]} 60. Qb4+ {[%clk 0:00:03]}  Ka6 {[%clk 0:00:04]} 61. Bd4 {[%clk 0:00:02]}  Qc4+ {[%clk 0:00:04]} 62. Qxc4+ {[%clk 0:00:02]}  dxc4 {[%clk 0:00:05]} 63. h4 {[%clk 0:00:02]}  Rf3 {[%clk 0:00:04]} 64. h5 {[%clk 0:00:03]}  Rh3 {[%clk 0:00:04]} 65. h6 {[%clk 0:00:03]}  Rxh6 {[%clk 0:00:04]} 66. b3 {[%clk 0:00:04]}  Rh3 {[%clk 0:00:04]} 67. Kb2 {[%clk 0:00:04]}  e3 {[%clk 0:00:03]} 68. Kc3 {[%clk 0:00:04]}  cxb3 {[%clk 0:00:03]} 69. cxb3 {[%clk 0:00:05]}  e2+ {[%clk 0:00:03]} 70. Kd2 {[%clk 0:00:05]}  Rxb3 {[%clk 0:00:04]} 71. Kxe2 {[%clk 0:00:03]}  Rxa3 {[%clk 0:00:04]} 72. Kd2 {[%clk 0:00:04]}  Rb3 {[%clk 0:00:04]} 73. Kc2 {[%clk 0:00:04]}  Kb5 {[%clk 0:00:05]} 74. Be5 {[%clk 0:00:04]}  Kc4 {[%clk 0:00:06]} 75. Bd6 {[%clk 0:00:04]}  a3 {[%clk 0:00:06]} 76. Be7 {[%clk 0:00:03]}  a2 {[%clk 0:00:06]} 77. Bf6 {[%clk 0:00:04]}  Rb1 {[%clk 0:00:06]} 78. Bg7 {[%clk 0:00:05]}  a1=Q {[%clk 0:00:05]} 79. Bxa1 {[%clk 0:00:06]} 0-1


[Site "https://www.chess.com"]

[Event "Titled Tuesday Blitz June 20 Early 2023"]
[White "Ilkhomi, Jaloliddin"]
[Black "Heinemann, Josefine"]
[WhiteFideId "14700948"]
[BlackFideId "12900460"]
[WhiteElo "2045"]
[BlackElo "2342"]
[Result "0-1"]
[Round "7"]
[TimeControl "180+2"]
[Date "2023.06.20"]
[WhiteClock "0:01:02"]
[BlackClock "0:01:22"]
[Board "102"]

1. Nf3 {[%clk 0:03:00]}  d5 {[%clk 0:02:59]} 2. c4 {[%clk 0:03:00]}  c6 {[%clk 0:02:58]} 3. cxd5 {[%clk 0:03:00]}  cxd5 {[%clk 0:02:58]} 4. d4 {[%clk 0:03:01]}  Nc6 {[%clk 0:02:57]} 5. Nc3 {[%clk 0:03:01]}  Nf6 {[%clk 0:02:57]} 6. Bf4 {[%clk 0:03:02]}  Bf5 {[%clk 0:02:55]} 7. e3 {[%clk 0:03:02]}  e6 {[%clk 0:02:55]} 8. Qb3 {[%clk 0:03:02]}  Bb4 {[%clk 0:02:40]} 9. Bb5 {[%clk 0:03:00]}  O-O {[%clk 0:02:39]} 10. Bxc6 {[%clk 0:02:55]}  Bxc3+ {[%clk 0:02:39]} 11. Qxc3 {[%clk 0:02:55]}  bxc6 {[%clk 0:02:39]} 12. Qxc6 {[%clk 0:02:51]}  Qa5+ {[%clk 0:02:34]} 13. Qc3 {[%clk 0:02:50]}  Qxc3+ {[%clk 0:02:33]} 14. bxc3 {[%clk 0:02:51]}  Rfc8 {[%clk 0:02:34]} 15. Rc1 {[%clk 0:02:46]}  Ne4 {[%clk 0:02:32]} 16. O-O {[%clk 0:02:39]}  Nxc3 {[%clk 0:02:22]} 17. Kh1 {[%clk 0:02:31]}  Ne2 {[%clk 0:02:12]} 18. Rxc8+ {[%clk 0:02:21]}  Rxc8 {[%clk 0:02:13]} 19. Bd6 {[%clk 0:02:19]}  f6 {[%clk 0:02:03]} 20. Bc5 {[%clk 0:02:19]}  a6 {[%clk 0:01:56]} 21. Re1 {[%clk 0:02:03]}  Nc3 {[%clk 0:01:55]} 22. Rc1 {[%clk 0:02:04]}  Na4 {[%clk 0:01:47]} 23. Nd2 {[%clk 0:01:59]}  Bd3 {[%clk 0:01:43]} 24. f3 {[%clk 0:01:51]}  Kf7 {[%clk 0:01:42]} 25. Kg1 {[%clk 0:01:50]}  g5 {[%clk 0:01:41]} 26. Kf2 {[%clk 0:01:50]}  h5 {[%clk 0:01:40]} 27. e4 {[%clk 0:01:46]}  Ke8 {[%clk 0:01:37]} 28. Ke3 {[%clk 0:01:46]}  Bb5 {[%clk 0:01:35]} 29. h4 {[%clk 0:01:43]}  gxh4 {[%clk 0:01:35]} 30. Nb3 {[%clk 0:01:16]}  Kd7 {[%clk 0:01:26]} 31. Rh1 {[%clk 0:01:14]}  Bc4 {[%clk 0:01:25]} 32. Rxh4 {[%clk 0:01:13]}  Bxb3 {[%clk 0:01:25]} 33. axb3 {[%clk 0:01:14]}  Nxc5 {[%clk 0:01:26]} 34. dxc5 {[%clk 0:01:11]}  Rxc5 {[%clk 0:01:27]} 35. Rxh5 {[%clk 0:01:08]}  d4+ {[%clk 0:01:21]} 36. Kxd4 {[%clk 0:01:02]}  Rxh5 {[%clk 0:01:22]} 0-1


[Site "https://www.chess.com"]

[Event "Titled Tuesday Blitz June 20 Early 2023"]
[White "Grossboss19"]
[Black "Ovchinnikov, Vsevolod"]
[BlackFideId "24176842"]
[WhiteElo "2440"]
[BlackElo "2376"]
[Result "0-1"]
[Round "7"]
[TimeControl "180+2"]
[Date "2023.06.20"]
[WhiteClock "0:00:20"]
[BlackClock "0:00:06"]
[Board "104"]

1. c4 {[%clk 0:02:58]}  e5 {[%clk 0:02:59]} 2. Nc3 {[%clk 0:02:58]}  Nf6 {[%clk 0:02:59]} 3. g3 {[%clk 0:02:58]}  Bb4 {[%clk 0:03:00]} 4. Bg2 {[%clk 0:02:58]}  c6 {[%clk 0:03:01]} 5. d3 {[%clk 0:02:53]}  O-O {[%clk 0:03:01]} 6. Bd2 {[%clk 0:02:52]}  Re8 {[%clk 0:03:01]} 7. e3 {[%clk 0:02:50]}  d5 {[%clk 0:03:00]} 8. cxd5 {[%clk 0:02:49]}  cxd5 {[%clk 0:03:01]} 9. Nge2 {[%clk 0:02:46]}  Nc6 {[%clk 0:02:57]} 10. O-O {[%clk 0:02:44]}  Bf5 {[%clk 0:02:52]} 11. e4 {[%clk 0:02:41]}  Be6 {[%clk 0:02:52]} 12. a3 {[%clk 0:02:35]}  Be7 {[%clk 0:02:40]} 13. Bg5 {[%clk 0:02:24]}  d4 {[%clk 0:02:38]} 14. Bxf6 {[%clk 0:02:22]}  Bxf6 {[%clk 0:02:36]} 15. Nd5 {[%clk 0:02:22]}  Be7 {[%clk 0:02:11]} 16. Rc1 {[%clk 0:02:12]}  Rc8 {[%clk 0:02:02]} 17. b4 {[%clk 0:02:09]}  Bd6 {[%clk 0:01:51]} 18. f4 {[%clk 0:02:03]}  f6 {[%clk 0:01:51]} 19. Kh1 {[%clk 0:01:49]}  Ne7 {[%clk 0:01:47]} 20. Rxc8 {[%clk 0:01:48]}  Qxc8 {[%clk 0:01:47]} 21. Qa4 {[%clk 0:01:41]}  Nxd5 {[%clk 0:01:21]} 22. exd5 {[%clk 0:01:37]}  Bg4 {[%clk 0:01:21]} 23. Rc1 {[%clk 0:01:33]}  Qd8 {[%clk 0:01:13]} 24. fxe5 {[%clk 0:01:21]}  fxe5 {[%clk 0:01:13]} 25. Ng1 {[%clk 0:01:20]}  a6 {[%clk 0:01:05]} 26. Nf3 {[%clk 0:01:13]}  Bf5 {[%clk 0:01:03]} 27. Rd1 {[%clk 0:01:10]}  Rf8 {[%clk 0:00:58]} 28. Qb3 {[%clk 0:01:07]}  Bg4 {[%clk 0:00:50]} 29. Rf1 {[%clk 0:01:05]}  Qc8 {[%clk 0:00:33]} 30. Qc4 {[%clk 0:00:55]}  Qd7 {[%clk 0:00:07]} 31. Ng5 {[%clk 0:00:39]}  Rxf1+ {[%clk 0:00:07]} 32. Bxf1 {[%clk 0:00:38]}  Qf5 {[%clk 0:00:07]} 33. Bg2 {[%clk 0:00:28]}  Qxg5 {[%clk 0:00:07]} 34. h3 {[%clk 0:00:27]}  Bd7 {[%clk 0:00:07]} 35. a4 {[%clk 0:00:25]}  h5 {[%clk 0:00:07]} 36. b5 {[%clk 0:00:25]}  axb5 {[%clk 0:00:07]} 37. axb5 {[%clk 0:00:26]}  Qxg3 {[%clk 0:00:07]} 38. Qa4 {[%clk 0:00:24]}  e4 {[%clk 0:00:07]} 39. dxe4 {[%clk 0:00:20]}  Qh2# {[%clk 0:00:06]} 0-1


[Site "https://www.chess.com"]

[Event "Titled Tuesday Blitz June 20 Early 2023"]
[White "Subelj, Jan"]
[Black "Sai Han Thiha"]
[WhiteFideId "14618583"]
[BlackFideId "13012290"]
[WhiteElo "2499"]
[BlackElo "1953"]
[Result "1-0"]
[Round "7"]
[TimeControl "180+2"]
[Date "2023.06.20"]
[WhiteClock "0:01:04"]
[BlackClock "0:00:00"]
[Board "105"]

1. e4 {[%clk 0:03:00]}  c6 {[%clk 0:03:00]} 2. b3 {[%clk 0:03:00]}  d5 {[%clk 0:03:00]} 3. e5 {[%clk 0:03:01]}  c5 {[%clk 0:02:55]} 4. Bb2 {[%clk 0:02:59]}  Nc6 {[%clk 0:02:55]} 5. Bb5 {[%clk 0:02:57]}  Qc7 {[%clk 0:02:52]} 6. Nf3 {[%clk 0:02:56]}  Bg4 {[%clk 0:02:51]} 7. O-O {[%clk 0:02:55]}  e6 {[%clk 0:02:49]} 8. h3 {[%clk 0:02:53]}  Bxf3 {[%clk 0:02:48]} 9. Qxf3 {[%clk 0:02:54]}  Ne7 {[%clk 0:02:44]} 10. Re1 {[%clk 0:02:53]}  a6 {[%clk 0:02:37]} 11. Bf1 {[%clk 0:02:49]}  Ng6 {[%clk 0:02:36]} 12. Qg3 {[%clk 0:02:47]}  h5 {[%clk 0:02:29]} 13. d3 {[%clk 0:02:45]}  h4 {[%clk 0:02:29]} 14. Qh2 {[%clk 0:02:45]}  Rh5 {[%clk 0:02:22]} 15. Be2 {[%clk 0:02:40]}  Rg5 {[%clk 0:02:01]} 16. Nd2 {[%clk 0:02:28]}  Ncxe5 {[%clk 0:01:56]} 17. f4 {[%clk 0:02:26]}  Bd6 {[%clk 0:01:02]} 18. fxe5 {[%clk 0:02:13]}  Nxe5 {[%clk 0:01:02]} 19. Qh1 {[%clk 0:02:03]}  c4 {[%clk 0:00:56]} 20. Nf3 {[%clk 0:02:01]}  c3 {[%clk 0:00:21]} 21. Bc1 {[%clk 0:01:59]}  Bc5+ {[%clk 0:00:13]} 22. Kf1 {[%clk 0:01:58]}  Nxf3 {[%clk 0:00:05]} 23. Bxf3 {[%clk 0:01:49]}  Qg3 {[%clk 0:00:05]} 24. Re2 {[%clk 0:01:49]}  Re5 {[%clk 0:00:06]} 25. b4 {[%clk 0:01:36]}  Ba7 {[%clk 0:00:05]} 26. a4 {[%clk 0:01:36]}  Rc8 {[%clk 0:00:03]} 27. b5 {[%clk 0:01:33]}  a5 {[%clk 0:00:03]} 28. Rb1 {[%clk 0:01:31]}  Bb6 {[%clk 0:00:03]} 29. Rb3 {[%clk 0:01:16]}  f6 {[%clk 0:00:03]} 30. Bg4 {[%clk 0:01:10]}  Rxe2 {[%clk 0:00:03]} 31. Kxe2 {[%clk 0:01:09]}  Qf2+ {[%clk 0:00:03]} 32. Kd1 {[%clk 0:01:09]}  Qd4 {[%clk 0:00:03]} 33. Bxe6 {[%clk 0:01:07]}  Rd8 {[%clk 0:00:02]} 34. Qe1 {[%clk 0:01:06]}  Kf8 {[%clk 0:00:02]} 35. Ba3+ {[%clk 0:01:05]}  Bc5 {[%clk 0:00:00]} 36. Qxc3 {[%clk 0:01:04]} 1-0


[Site "https://www.chess.com"]

[Event "Titled Tuesday Blitz June 20 Early 2023"]
[White "Adla, Diego"]
[Black "Herzog2012"]
[WhiteFideId "100072"]
[WhiteElo "2377"]
[BlackElo "2429"]
[Result "0-1"]
[Round "7"]
[TimeControl "180+2"]
[Date "2023.06.20"]
[WhiteClock "0:00:01"]
[BlackClock "0:00:03"]
[Board "108"]

1. c4 {[%clk 0:02:57]}  e5 {[%clk 0:02:58]} 2. Nc3 {[%clk 0:02:57]}  Nf6 {[%clk 0:02:58]} 3. Nf3 {[%clk 0:02:57]}  Nc6 {[%clk 0:02:58]} 4. e4 {[%clk 0:02:57]}  Bb4 {[%clk 0:02:56]} 5. d3 {[%clk 0:02:58]}  O-O {[%clk 0:02:52]} 6. Be2 {[%clk 0:02:58]}  d6 {[%clk 0:02:53]} 7. O-O {[%clk 0:02:58]}  h6 {[%clk 0:02:49]} 8. Ne1 {[%clk 0:02:55]}  Nd4 {[%clk 0:02:45]} 9. Nc2 {[%clk 0:02:55]}  Bc5 {[%clk 0:02:40]} 10. Nxd4 {[%clk 0:02:50]}  Bxd4 {[%clk 0:02:39]} 11. Kh1 {[%clk 0:02:50]}  Nd7 {[%clk 0:02:32]} 12. f4 {[%clk 0:02:51]}  exf4 {[%clk 0:02:31]} 13. Bxf4 {[%clk 0:02:51]}  Nc5 {[%clk 0:02:28]} 14. Qe1 {[%clk 0:02:48]}  f5 {[%clk 0:02:11]} 15. Qg3 {[%clk 0:02:45]}  Kh7 {[%clk 0:01:31]} 16. Bh5 {[%clk 0:02:39]}  g5 {[%clk 0:01:29]} 17. Bd2 {[%clk 0:02:37]}  f4 {[%clk 0:01:27]} 18. Bxf4 {[%clk 0:02:34]}  Be6 {[%clk 0:00:58]} 19. Bd2 {[%clk 0:02:31]}  Qe7 {[%clk 0:00:49]} 20. Rae1 {[%clk 0:02:24]}  Qg7 {[%clk 0:00:33]} 21. Bg4 {[%clk 0:01:55]}  Bxg4 {[%clk 0:00:23]} 22. Qxg4 {[%clk 0:01:55]}  Nxd3 {[%clk 0:00:21]} 23. e5 {[%clk 0:01:54]}  Nxe1 {[%clk 0:00:16]} 24. Rxe1 {[%clk 0:01:51]}  Bxe5 {[%clk 0:00:13]} 25. h3 {[%clk 0:01:47]}  Rae8 {[%clk 0:00:12]} 26. Nd5 {[%clk 0:01:44]}  Qf7 {[%clk 0:00:03]} 27. Qe4+ {[%clk 0:01:26]}  Kg7 {[%clk 0:00:03]} 28. Ne3 {[%clk 0:01:16]}  Qf4 {[%clk 0:00:01]} 29. Qxf4 {[%clk 0:01:12]}  Bxf4 {[%clk 0:00:02]} 30. Kg1 {[%clk 0:01:07]}  Bxe3+ {[%clk 0:00:01]} 31. Bxe3 {[%clk 0:01:07]}  Re7 {[%clk 0:00:02]} 32. Bd4+ {[%clk 0:01:08]}  Kf7 {[%clk 0:00:02]} 33. Rd1 {[%clk 0:01:04]}  b6 {[%clk 0:00:02]} 34. b4 {[%clk 0:01:01]}  Rfe8 {[%clk 0:00:03]} 35. Kf2 {[%clk 0:01:00]}  Re4 {[%clk 0:00:03]} 36. c5 {[%clk 0:00:59]}  Rf4+ {[%clk 0:00:03]} 37. Kg3 {[%clk 0:00:58]}  bxc5 {[%clk 0:00:02]} 38. bxc5 {[%clk 0:00:58]}  dxc5 {[%clk 0:00:03]} 39. Bxc5 {[%clk 0:00:59]}  Rc4 {[%clk 0:00:03]} 40. Bxa7 {[%clk 0:00:48]}  Ra8 {[%clk 0:00:02]} 41. Bg1 {[%clk 0:00:41]}  Rxa2 {[%clk 0:00:02]} 42. Rd7+ {[%clk 0:00:29]}  Kg6 {[%clk 0:00:02]} 43. Bd4 {[%clk 0:00:27]}  Rcc2 {[%clk 0:00:01]} 44. Kf3 {[%clk 0:00:25]}  Rxg2 {[%clk 0:00:01]} 45. Rxc7 {[%clk 0:00:25]}  Kh5 {[%clk 0:00:02]} 46. Rc6 {[%clk 0:00:22]}  Rh2 {[%clk 0:00:03]} 47. Kg3 {[%clk 0:00:18]}  Rag2+ {[%clk 0:00:03]} 48. Kf3 {[%clk 0:00:19]}  Rd2 {[%clk 0:00:03]} 49. Kg3 {[%clk 0:00:18]}  Rxh3+ {[%clk 0:00:02]} 50. Kxh3 {[%clk 0:00:18]}  Rxd4 {[%clk 0:00:03]} 51. Kg3 {[%clk 0:00:18]}  Rd3+ {[%clk 0:00:04]} 52. Kf2 {[%clk 0:00:19]}  Rd8 {[%clk 0:00:03]} 53. Kg3 {[%clk 0:00:19]}  Rg8 {[%clk 0:00:03]} 54. Rb6 {[%clk 0:00:19]}  Rg6 {[%clk 0:00:04]} 55. Rb4 {[%clk 0:00:17]}  Rf6 {[%clk 0:00:04]} 56. Rb8 {[%clk 0:00:16]}  Kg6 {[%clk 0:00:04]} 57. Rg8+ {[%clk 0:00:16]}  Kh7 {[%clk 0:00:05]} 58. Rb8 {[%clk 0:00:15]}  h5 {[%clk 0:00:05]} 59. Rb5 {[%clk 0:00:14]}  Kg6 {[%clk 0:00:06]} 60. Rb3 {[%clk 0:00:15]}  h4+ {[%clk 0:00:06]} 61. Kg4 {[%clk 0:00:14]}  Rf4+ {[%clk 0:00:06]} 62. Kh3 {[%clk 0:00:14]}  Kh5 {[%clk 0:00:06]} 63. Rb5 {[%clk 0:00:15]}  Rf3+ {[%clk 0:00:06]} 64. Kg2 {[%clk 0:00:15]}  Kg4 {[%clk 0:00:06]} 65. Ra5 {[%clk 0:00:13]}  Rf4 {[%clk 0:00:05]} 66. Rb5 {[%clk 0:00:13]}  Rc4 {[%clk 0:00:05]} 67. Rb2 {[%clk 0:00:13]}  Kf4 {[%clk 0:00:05]} 68. Rf2+ {[%clk 0:00:12]}  Kg4 {[%clk 0:00:05]} 69. Rb2 {[%clk 0:00:11]}  h3+ {[%clk 0:00:06]} 70. Kh2 {[%clk 0:00:11]}  Kh4 {[%clk 0:00:06]} 71. Rb8 {[%clk 0:00:11]}  Rc2+ {[%clk 0:00:06]} 72. Kg1 {[%clk 0:00:11]}  g4 {[%clk 0:00:06]} 73. Rb3 {[%clk 0:00:10]}  g3 {[%clk 0:00:06]} 74. Rb1 {[%clk 0:00:10]}  h2+ {[%clk 0:00:03]} 75. Kh1 {[%clk 0:00:10]}  Kh3 {[%clk 0:00:04]} 76. Rb3 {[%clk 0:00:01]}  Rc1# {[%clk 0:00:03]} 0-1


[Site "https://www.chess.com"]

[Event "Titled Tuesday Blitz June 20 Early 2023"]
[White "Girya, Olga"]
[Black "Ai, Evan"]
[WhiteFideId "4195752"]
[BlackFideId "2094770"]
[WhiteElo "2263"]
[BlackElo "1963"]
[Result "1-0"]
[Round "7"]
[TimeControl "180+2"]
[Date "2023.06.20"]
[WhiteClock "0:02:44"]
[BlackClock "0:02:50"]
[Board "111"]

1. d4 {[%clk 0:03:00]}  Nf6 {[%clk 0:02:59]} 2. Nf3 {[%clk 0:03:01]}  e6 {[%clk 0:03:00]} 3. c4 {[%clk 0:03:01]}  b6 {[%clk 0:03:00]} 4. g3 {[%clk 0:03:01]}  Bb7 {[%clk 0:03:01]} 5. Bg2 {[%clk 0:03:01]}  Be7 {[%clk 0:03:01]} 6. O-O {[%clk 0:03:01]}  O-O {[%clk 0:03:02]} 7. Nc3 {[%clk 0:03:00]}  Ne4 {[%clk 0:03:03]} 8. Bd2 {[%clk 0:03:00]}  Nxc3 {[%clk 0:03:03]} 9. Bxc3 {[%clk 0:03:00]}  f5 {[%clk 0:03:03]} 10. d5 {[%clk 0:02:57]}  Bf6 {[%clk 0:02:53]} 11. Nd4 {[%clk 0:02:47]}  Qe7 {[%clk 0:02:50]} 12. d6 {[%clk 0:02:45]}  Bxg2 {[%clk 0:02:50]} 13. dxe7 {[%clk 0:02:44]} 1-0


[Site "https://www.chess.com"]

[Event "Titled Tuesday Blitz June 20 Early 2023"]
[White "Trifan, Andrei Ioan"]
[Black "Fiedorek, Michal"]
[WhiteFideId "12967068"]
[BlackFideId "1199528"]
[WhiteElo "2208"]
[BlackElo "2135"]
[Result "0-1"]
[Round "7"]
[TimeControl "180+2"]
[Date "2023.06.20"]
[WhiteClock "0:01:02"]
[BlackClock "0:00:11"]
[Board "113"]

1. Nf3 {[%clk 0:02:59]}  Nf6 {[%clk 0:02:59]} 2. b3 {[%clk 0:02:58]}  c5 {[%clk 0:02:56]} 3. Bb2 {[%clk 0:02:58]}  e6 {[%clk 0:02:56]} 4. e3 {[%clk 0:02:58]}  Be7 {[%clk 0:02:57]} 5. d4 {[%clk 0:02:57]}  O-O {[%clk 0:02:56]} 6. Be2 {[%clk 0:02:56]}  cxd4 {[%clk 0:02:56]} 7. Nxd4 {[%clk 0:02:55]}  Nc6 {[%clk 0:02:55]} 8. O-O {[%clk 0:02:54]}  d5 {[%clk 0:02:41]} 9. c4 {[%clk 0:02:53]}  Nxd4 {[%clk 0:02:40]} 10. Bxd4 {[%clk 0:02:49]}  b6 {[%clk 0:02:39]} 11. Nc3 {[%clk 0:02:48]}  Bb7 {[%clk 0:02:38]} 12. Qd2 {[%clk 0:02:46]}  dxc4 {[%clk 0:02:36]} 13. Rfd1 {[%clk 0:02:41]}  cxb3 {[%clk 0:02:34]} 14. axb3 {[%clk 0:02:42]}  Qc7 {[%clk 0:01:55]} 15. Rac1 {[%clk 0:02:27]}  Qd6 {[%clk 0:01:36]} 16. Qb2 {[%clk 0:02:20]}  Qa3 {[%clk 0:01:30]} 17. Qb1 {[%clk 0:02:14]}  Rac8 {[%clk 0:01:21]} 18. Nb5 {[%clk 0:02:05]}  Rxc1 {[%clk 0:01:12]} 19. Rxc1 {[%clk 0:02:06]}  Qb4 {[%clk 0:01:09]} 20. Rc7 {[%clk 0:02:00]}  Be4 {[%clk 0:01:03]} 21. Qa1 {[%clk 0:01:50]}  a6 {[%clk 0:00:43]} 22. Bc3 {[%clk 0:01:30]}  Qxb3 {[%clk 0:00:38]} 23. Bc4 {[%clk 0:01:27]}  Qc2 {[%clk 0:00:22]} 24. Nd4 {[%clk 0:01:25]}  Qb1+ {[%clk 0:00:14]} 25. Qxb1 {[%clk 0:01:25]}  Bxb1 {[%clk 0:00:15]} 26. Rxe7 {[%clk 0:01:24]}  Ne4 {[%clk 0:00:13]} 27. Be1 {[%clk 0:01:15]}  Rc8 {[%clk 0:00:12]} 28. Re8+ {[%clk 0:01:02]}  Rxe8 {[%clk 0:00:11]} 0-1


[Site "https://www.chess.com"]

[Event "Titled Tuesday Blitz June 20 Early 2023"]
[White "Mamedov, Edgar"]
[Black "Kotepalli, Sai Nirupama"]
[WhiteFideId "13739980"]
[BlackFideId "5039444"]
[WhiteElo "2317"]
[BlackElo "2405"]
[Result "1-0"]
[Round "7"]
[TimeControl "180+2"]
[Date "2023.06.20"]
[WhiteClock "0:02:37"]
[BlackClock "0:01:38"]
[Board "115"]

1. d4 {[%clk 0:03:00]}  g6 {[%clk 0:02:28]} 2. Nf3 {[%clk 0:02:59]}  Bg7 {[%clk 0:02:28]} 3. Bf4 {[%clk 0:02:58]}  d6 {[%clk 0:02:28]} 4. e3 {[%clk 0:02:58]}  Nd7 {[%clk 0:02:28]} 5. h3 {[%clk 0:02:57]}  Ngf6 {[%clk 0:02:27]} 6. Be2 {[%clk 0:02:53]}  c5 {[%clk 0:02:25]} 7. c3 {[%clk 0:02:50]}  O-O {[%clk 0:02:25]} 8. O-O {[%clk 0:02:49]}  Qb6 {[%clk 0:02:24]} 9. Qb3 {[%clk 0:02:46]}  Qxb3 {[%clk 0:02:20]} 10. axb3 {[%clk 0:02:45]}  Nb6 {[%clk 0:02:17]} 11. Nbd2 {[%clk 0:02:41]}  Nfd5 {[%clk 0:02:04]} 12. Bh2 {[%clk 0:02:39]}  Rd8 {[%clk 0:01:55]} 13. e4 {[%clk 0:02:37]}  Nf6 {[%clk 0:01:38]} 14. dxc5 {[%clk 0:02:37]} 1-0


[Site "https://www.chess.com"]